[Event "Titled Tuesday Blitz March 07 Early 2023"]
[White "Sreyas Payyappat"]
[Black "Grabinsky, Vladimir"]
[WhiteFideId "46674969"]
[BlackFideId "14107074"]
[WhiteElo "2083"]
[BlackElo "2027"]
[Result "1-0"]
[Round "06"]
[TimeControl "180+2"]
[Date "2023.03.07"]
[WhiteClock "0:00:31"]
[BlackClock "0:00:52"]

1. e4 {[%clk 0:02:59]}  e5 {[%clk 0:02:59]} 2. Nf3 {[%clk 0:02:56]}  Nc6 {[%clk 0:03:00]} 3. Bc4 {[%clk 0:02:57]}  Bc5 {[%clk 0:02:58]} 4. c3 {[%clk 0:02:57]}  Nf6 {[%clk 0:02:56]} 5. d4 {[%clk 0:02:58]}  exd4 {[%clk 0:02:56]} 6. e5 {[%clk 0:02:58]}  d5 {[%clk 0:02:54]} 7. Bb5 {[%clk 0:02:58]}  Ne4 {[%clk 0:02:48]} 8. cxd4 {[%clk 0:02:57]}  Bb4+ {[%clk 0:02:48]} 9. Bd2 {[%clk 0:02:56]}  Bxd2+ {[%clk 0:02:44]} 10. Nbxd2 {[%clk 0:02:57]}  O-O {[%clk 0:02:37]} 11. Bxc6 {[%clk 0:02:47]}  bxc6 {[%clk 0:02:36]} 12. Rc1 {[%clk 0:02:41]}  Rb8 {[%clk 0:02:23]} 13. b3 {[%clk 0:02:34]}  Ba6 {[%clk 0:02:11]} 14. Rxc6 {[%clk 0:02:31]}  Rb6 {[%clk 0:02:03]} 15. Qc2 {[%clk 0:01:56]}  Qd7 {[%clk 0:01:32]} 16. Rxb6 {[%clk 0:01:53]}  axb6 {[%clk 0:01:33]} 17. Nxe4 {[%clk 0:01:47]}  dxe4 {[%clk 0:01:32]} 18. Qxe4 {[%clk 0:01:48]}  Rd8 {[%clk 0:01:21]} 19. e6 {[%clk 0:00:32]}  fxe6 {[%clk 0:01:14]} 20. Ng5 {[%clk 0:00:31]}  Qxd4 {[%clk 0:01:01]} 21. Qxe6+ {[%clk 0:00:30]}  Kh8 {[%clk 0:00:52]} 22. Nf7+ {[%clk 0:00:30]}  Kg8 {[%clk 0:00:52]} 23. Nh6+ {[%clk 0:00:30]}  Kh8 {[%clk 0:00:52]} 24. Qg8+ {[%clk 0:00:30]}  Rxg8 {[%clk 0:00:52]} 25. Nf7# {[%clk 0:00:31]} 1-0


[Site "https://www.chess.com"]

[Event "Titled Tuesday Blitz March 07 Early 2023"]
[White "Rosh Jain"]
[Black "Aarav Dengla"]
[WhiteFideId "25789465"]
[BlackFideId "45059756"]
[WhiteElo "2233"]
[BlackElo "2285"]
[Result "0-1"]
[Round "06"]
[TimeControl "180+2"]
[Date "2023.03.07"]
[WhiteClock "0:00:03"]
[BlackClock "0:00:13"]

1. e4 {[%clk 0:03:00]}  c5 {[%clk 0:02:59]} 2. Nf3 {[%clk 0:03:00]}  d6 {[%clk 0:03:00]} 3. d4 {[%clk 0:03:00]}  cxd4 {[%clk 0:03:01]} 4. Nxd4 {[%clk 0:03:01]}  Nf6 {[%clk 0:03:01]} 5. Nc3 {[%clk 0:03:01]}  a6 {[%clk 0:03:02]} 6. Bc4 {[%clk 0:03:01]}  e6 {[%clk 0:03:02]} 7. Bb3 {[%clk 0:03:01]}  Nbd7 {[%clk 0:02:45]} 8. Bg5 {[%clk 0:03:00]}  Nc5 {[%clk 0:02:43]} 9. O-O {[%clk 0:03:00]}  Be7 {[%clk 0:02:43]} 10. Bxf6 {[%clk 0:03:00]}  Bxf6 {[%clk 0:02:44]} 11. Kh1 {[%clk 0:02:59]}  O-O {[%clk 0:02:42]} 12. f4 {[%clk 0:02:53]}  b5 {[%clk 0:02:41]} 13. a3 {[%clk 0:02:51]}  Bb7 {[%clk 0:02:41]} 14. Re1 {[%clk 0:02:47]}  Qb6 {[%clk 0:02:41]} 15. e5 {[%clk 0:02:39]}  Be7 {[%clk 0:02:30]} 16. Qg4 {[%clk 0:02:06]}  dxe5 {[%clk 0:01:43]} 17. fxe5 {[%clk 0:02:02]}  Rad8 {[%clk 0:01:43]} 18. Rad1 {[%clk 0:01:59]}  b4 {[%clk 0:01:36]} 19. axb4 {[%clk 0:01:54]}  Qxb4 {[%clk 0:01:37]} 20. h3 {[%clk 0:01:54]}  h5 {[%clk 0:01:32]} 21. Qf4 {[%clk 0:01:32]}  Nxb3 {[%clk 0:01:20]} 22. cxb3 {[%clk 0:01:32]}  Bc5 {[%clk 0:01:17]} 23. Nde2 {[%clk 0:01:22]}  Qxb3 {[%clk 0:00:59]} 24. Qg5 {[%clk 0:01:11]}  Rxd1 {[%clk 0:00:56]} 25. Rxd1 {[%clk 0:01:04]}  Qc2 {[%clk 0:00:54]} 26. Rc1 {[%clk 0:00:37]}  Qg6 {[%clk 0:00:48]} 27. Qxg6 {[%clk 0:00:22]}  fxg6 {[%clk 0:00:49]} 28. Na4 {[%clk 0:00:22]}  Be3 {[%clk 0:00:32]} 29. Rc7 {[%clk 0:00:17]}  Bd5 {[%clk 0:00:27]} 30. Nac3 {[%clk 0:00:16]}  Rd8 {[%clk 0:00:17]} 31. Re7 {[%clk 0:00:11]}  Kf8 {[%clk 0:00:14]} 32. Nxd5 {[%clk 0:00:10]}  Rxd5 {[%clk 0:00:12]} 33. Rxe6 {[%clk 0:00:10]}  Kf7 {[%clk 0:00:12]} 34. Rxa6 {[%clk 0:00:09]}  Rxe5 {[%clk 0:00:13]} 35. Nc3 {[%clk 0:00:08]}  Bd4 {[%clk 0:00:10]} 36. Rd6 {[%clk 0:00:06]}  Re1+ {[%clk 0:00:10]} 37. Kh2 {[%clk 0:00:06]}  Be5+ {[%clk 0:00:11]} 38. g3 {[%clk 0:00:07]}  Bxd6 {[%clk 0:00:12]} 39. Kg2 {[%clk 0:00:07]}  Be5 {[%clk 0:00:12]} 40. Nd5 {[%clk 0:00:05]}  Bxb2 {[%clk 0:00:11]} 41. Kf3 {[%clk 0:00:06]}  Re8 {[%clk 0:00:11]} 42. Nf4 {[%clk 0:00:05]}  Bf6 {[%clk 0:00:11]} 43. Nd3 {[%clk 0:00:05]}  g5 {[%clk 0:00:12]} 44. Nf2 {[%clk 0:00:05]}  g4+ {[%clk 0:00:12]} 45. hxg4 {[%clk 0:00:05]}  hxg4+ {[%clk 0:00:13]} 46. Nxg4 {[%clk 0:00:06]}  g5 {[%clk 0:00:14]} 47. Nf2 {[%clk 0:00:04]}  Kg6 {[%clk 0:00:14]} 48. g4 {[%clk 0:00:04]}  Be5 {[%clk 0:00:13]} 49. Nd3 {[%clk 0:00:03]}  Rf8+ {[%clk 0:00:13]} 50. Kg2 {[%clk 0:00:03]}  Bc7 {[%clk 0:00:11]} 51. Nc5 {[%clk 0:00:03]}  Rf4 {[%clk 0:00:11]} 52. Kh3 {[%clk 0:00:01]}  Rf3+ {[%clk 0:00:11]} 53. Kg2 {[%clk 0:00:01]}  Rg3+ {[%clk 0:00:12]} 54. Kf2 {[%clk 0:00:01]}  Rxg4 {[%clk 0:00:13]} 55. Ne6 {[%clk 0:00:01]}  Rc4 {[%clk 0:00:13]} 56. Kf3 {[%clk 0:00:01]}  g4+ {[%clk 0:00:13]} 57. Kg2 {[%clk 0:00:01]}  Kf5 {[%clk 0:00:13]} 58. Ng7+ {[%clk 0:00:01]}  Ke4 {[%clk 0:00:14]} 59. Ne6 {[%clk 0:00:01]}  Rc2+ {[%clk 0:00:15]} 60. Kg1 {[%clk 0:00:01]}  g3 {[%clk 0:00:11]} 61. Kf1 {[%clk 0:00:01]}  g2+ {[%clk 0:00:10]} 62. Kg1 {[%clk 0:00:02]}  Bb6+ {[%clk 0:00:11]} 63. Kh2 {[%clk 0:00:02]}  g1=Q+ {[%clk 0:00:12]} 64. Kh3 {[%clk 0:00:02]}  Qg2+ {[%clk 0:00:11]} 65. Kh4 {[%clk 0:00:03]}  Bf2+ {[%clk 0:00:11]} 66. Kh5 {[%clk 0:00:03]}  Qh3+ {[%clk 0:00:12]} 67. Kg6 {[%clk 0:00:02]}  Qxe6+ {[%clk 0:00:12]} 68. Kh7 {[%clk 0:00:03]}  Rc7+ {[%clk 0:00:12]} 69. Kh8 {[%clk 0:00:03]}  Qe8# {[%clk 0:00:13]} 0-1


[Site "https://www.chess.com"]

[Event "Titled Tuesday Blitz March 07 Early 2023"]
[White "Sailer, Mike"]
[Black "Postnikov, Artem"]
[WhiteFideId "2012901"]
[BlackFideId "34153575"]
[WhiteElo "2109"]
[BlackElo "2243"]
[Result "0-1"]
[Round "06"]
[TimeControl "180+2"]
[Date "2023.03.07"]
[WhiteClock "0:00:51"]
[BlackClock "0:00:16"]

1. d4 {[%clk 0:02:59]}  Nf6 {[%clk 0:02:56]} 2. Bg5 {[%clk 0:02:59]}  d5 {[%clk 0:02:53]} 3. Bxf6 {[%clk 0:02:59]}  exf6 {[%clk 0:02:53]} 4. e3 {[%clk 0:03:00]}  c5 {[%clk 0:02:44]} 5. dxc5 {[%clk 0:02:54]}  Nc6 {[%clk 0:02:42]} 6. Nf3 {[%clk 0:02:53]}  Bxc5 {[%clk 0:02:40]} 7. Bb5 {[%clk 0:02:52]}  O-O {[%clk 0:02:36]} 8. O-O {[%clk 0:02:52]}  Bg4 {[%clk 0:02:36]} 9. c3 {[%clk 0:02:45]}  Qb6 {[%clk 0:02:33]} 10. Qb3 {[%clk 0:02:42]}  Bxf3 {[%clk 0:02:11]} 11. gxf3 {[%clk 0:02:41]}  Ne5 {[%clk 0:02:00]} 12. Nd2 {[%clk 0:02:39]}  f5 {[%clk 0:01:53]} 13. Be2 {[%clk 0:02:23]}  f4 {[%clk 0:01:48]} 14. Qxb6 {[%clk 0:02:20]}  Bxb6 {[%clk 0:01:49]} 15. exf4 {[%clk 0:02:16]}  Ng6 {[%clk 0:01:49]} 16. f5 {[%clk 0:01:57]}  Nf4 {[%clk 0:01:48]} 17. Bd1 {[%clk 0:01:57]}  Rfe8 {[%clk 0:01:33]} 18. Nb3 {[%clk 0:01:51]}  Re5 {[%clk 0:01:06]} 19. f6 {[%clk 0:01:34]}  gxf6 {[%clk 0:00:45]} 20. Nd4 {[%clk 0:01:28]}  Rae8 {[%clk 0:00:36]} 21. Bb3 {[%clk 0:01:18]}  Bxd4 {[%clk 0:00:36]} 22. cxd4 {[%clk 0:01:18]}  Ne2+ {[%clk 0:00:36]} 23. Kh1 {[%clk 0:01:17]}  Nxd4 {[%clk 0:00:37]} 24. Rg1+ {[%clk 0:01:04]}  Kf8 {[%clk 0:00:36]} 25. Rg4 {[%clk 0:01:05]}  Nxb3 {[%clk 0:00:15]} 26. axb3 {[%clk 0:01:05]}  Re1+ {[%clk 0:00:16]} 27. Rxe1 {[%clk 0:01:05]}  Rxe1+ {[%clk 0:00:16]} 28. Kg2 {[%clk 0:01:06]}  Re2 {[%clk 0:00:17]} 29. Rd4 {[%clk 0:00:56]}  Rxb2 {[%clk 0:00:17]} 30. Rxd5 {[%clk 0:00:57]}  Rxb3 {[%clk 0:00:17]} 31. Rd8+ {[%clk 0:00:54]}  Kg7 {[%clk 0:00:17]} 32. Rd7 {[%clk 0:00:53]}  a5 {[%clk 0:00:17]} 33. h4 {[%clk 0:00:51]}  h5 {[%clk 0:00:16]} 0-1


[Site "https://www.chess.com"]

[Event "Titled Tuesday Blitz March 07 Early 2023"]
[White "Kho, Darrell"]
[Black "Mikhalsky, Vladimir"]
[WhiteFideId "1019317"]
[BlackFideId "14144352"]
[WhiteElo "2178"]
[BlackElo "2272"]
[Result "0-1"]
[Round "06"]
[TimeControl "180+2"]
[Date "2023.03.07"]
[WhiteClock "0:00:01"]
[BlackClock "0:01:04"]

1. e4 {[%clk 0:03:00]}  c5 {[%clk 0:02:56]} 2. Nf3 {[%clk 0:02:59]}  Nc6 {[%clk 0:02:56]} 3. Bb5 {[%clk 0:02:59]}  g6 {[%clk 0:02:56]} 4. O-O {[%clk 0:02:58]}  Bg7 {[%clk 0:02:56]} 5. Re1 {[%clk 0:02:52]}  e5 {[%clk 0:02:55]} 6. Bxc6 {[%clk 0:02:48]}  bxc6 {[%clk 0:02:53]} 7. d3 {[%clk 0:02:35]}  Ne7 {[%clk 0:02:52]} 8. Nbd2 {[%clk 0:02:30]}  d6 {[%clk 0:02:51]} 9. a3 {[%clk 0:02:28]}  a5 {[%clk 0:02:44]} 10. Nc4 {[%clk 0:02:28]}  a4 {[%clk 0:02:42]} 11. Be3 {[%clk 0:01:50]}  h6 {[%clk 0:02:34]} 12. Qd2 {[%clk 0:01:49]}  Qc7 {[%clk 0:02:22]} 13. b4 {[%clk 0:01:31]}  axb3 {[%clk 0:02:14]} 14. cxb3 {[%clk 0:01:29]}  d5 {[%clk 0:02:13]} 15. exd5 {[%clk 0:01:25]}  cxd5 {[%clk 0:02:12]} 16. Ncxe5 {[%clk 0:01:23]}  g5 {[%clk 0:01:54]} 17. Rac1 {[%clk 0:00:59]}  O-O {[%clk 0:01:40]} 18. Bxc5 {[%clk 0:00:53]}  g4 {[%clk 0:01:35]} 19. Bd4 {[%clk 0:00:13]}  Qa5 {[%clk 0:01:16]} 20. Nxg4 {[%clk 0:00:09]}  Qxd2 {[%clk 0:01:11]} 21. Nxd2 {[%clk 0:00:05]}  Bxd4 {[%clk 0:01:09]} 22. Nxh6+ {[%clk 0:00:02]}  Kg7 {[%clk 0:01:08]} 23. Rxe7 {[%clk 0:00:02]}  Kxh6 {[%clk 0:01:08]} 24. Nf3 {[%clk 0:00:02]}  Bf6 {[%clk 0:01:06]} 25. Rc6 {[%clk 0:00:02]}  Be6 {[%clk 0:01:06]} 26. Rec7 {[%clk 0:00:01]}  Rxa3 {[%clk 0:01:04]} 0-1


[Site "https://www.chess.com"]

[Event "Titled Tuesday Blitz March 07 Early 2023"]
[White "Staudenhocker43"]
[Black "Lorenzo De La Riva, Lazaro"]
[BlackFideId "2268809"]
[WhiteElo "2429"]
[BlackElo "2294"]
[Result "1-0"]
[Round "06"]
[TimeControl "180+2"]
[Date "2023.03.07"]
[WhiteClock "0:00:20"]
[BlackClock "0:00:07"]

1. d4 {[%clk 0:03:00]}  d6 {[%clk 0:03:00]} 2. e4 {[%clk 0:03:00]}  Nd7 {[%clk 0:03:01]} 3. f4 {[%clk 0:02:58]}  e5 {[%clk 0:03:01]} 4. Nf3 {[%clk 0:02:58]}  Ngf6 {[%clk 0:03:00]} 5. Nc3 {[%clk 0:02:58]}  exd4 {[%clk 0:03:00]} 6. Qxd4 {[%clk 0:02:58]}  c6 {[%clk 0:03:00]} 7. Bd2 {[%clk 0:02:58]}  Qb6 {[%clk 0:02:59]} 8. O-O-O {[%clk 0:02:57]}  Qxd4 {[%clk 0:02:58]} 9. Nxd4 {[%clk 0:02:58]}  g6 {[%clk 0:02:55]} 10. Be2 {[%clk 0:02:57]}  Bg7 {[%clk 0:02:52]} 11. Be3 {[%clk 0:02:57]}  O-O {[%clk 0:02:51]} 12. Bf3 {[%clk 0:02:56]}  Re8 {[%clk 0:02:50]} 13. Nb3 {[%clk 0:02:49]}  Bf8 {[%clk 0:02:49]} 14. Rhe1 {[%clk 0:02:47]}  a5 {[%clk 0:02:48]} 15. a4 {[%clk 0:02:46]}  h5 {[%clk 0:02:45]} 16. h3 {[%clk 0:02:45]}  h4 {[%clk 0:02:38]} 17. Nd2 {[%clk 0:02:36]}  Bh6 {[%clk 0:02:22]} 18. Nc4 {[%clk 0:02:31]}  d5 {[%clk 0:02:21]} 19. exd5 {[%clk 0:02:31]}  cxd5 {[%clk 0:02:18]} 20. Nxd5 {[%clk 0:02:30]}  Nxd5 {[%clk 0:02:18]} 21. Bxd5 {[%clk 0:02:29]}  Nf6 {[%clk 0:02:15]} 22. Bf3 {[%clk 0:02:29]}  Bf5 {[%clk 0:02:11]} 23. Ne5 {[%clk 0:02:23]}  Re7 {[%clk 0:01:51]} 24. b3 {[%clk 0:02:02]}  Rc8 {[%clk 0:01:49]} 25. c4 {[%clk 0:02:01]}  Ne4 {[%clk 0:01:17]} 26. Kb2 {[%clk 0:01:56]}  Nc5 {[%clk 0:01:08]} 27. Bxc5 {[%clk 0:01:50]}  Rxc5 {[%clk 0:01:08]} 28. Ng4 {[%clk 0:01:32]}  Bg7+ {[%clk 0:01:02]} 29. Ka3 {[%clk 0:01:27]}  Rxe1 {[%clk 0:01:01]} 30. Rxe1 {[%clk 0:01:28]}  Bc3 {[%clk 0:01:00]} 31. Re8+ {[%clk 0:01:26]}  Kg7 {[%clk 0:01:00]} 32. Bxb7 {[%clk 0:01:23]}  Rc7 {[%clk 0:00:56]} 33. Bd5 {[%clk 0:01:22]}  Bd2 {[%clk 0:00:40]} 34. Ne3 {[%clk 0:01:21]}  Bd7 {[%clk 0:00:38]} 35. Re7 {[%clk 0:01:18]}  Bb4+ {[%clk 0:00:38]} 36. Ka2 {[%clk 0:01:17]}  Bxe7 {[%clk 0:00:37]} 37. Bf3 {[%clk 0:01:18]}  Be6 {[%clk 0:00:36]} 38. Kb2 {[%clk 0:01:14]}  Bf6+ {[%clk 0:00:33]} 39. Kc2 {[%clk 0:01:14]}  Bf5+ {[%clk 0:00:32]} 40. Kd2 {[%clk 0:01:11]}  Be6 {[%clk 0:00:29]} 41. Kd3 {[%clk 0:01:04]}  Rd7+ {[%clk 0:00:29]} 42. Bd5 {[%clk 0:00:58]}  g5 {[%clk 0:00:27]} 43. f5 {[%clk 0:00:56]}  Bxd5 {[%clk 0:00:26]} 44. Nxd5 {[%clk 0:00:52]}  Be7 {[%clk 0:00:23]} 45. Kd4 {[%clk 0:00:50]}  Bd6 {[%clk 0:00:17]} 46. c5 {[%clk 0:00:49]}  Bg3 {[%clk 0:00:17]} 47. c6 {[%clk 0:00:49]}  Rd8 {[%clk 0:00:13]} 48. Kc5 {[%clk 0:00:49]}  Rxd5+ {[%clk 0:00:11]} 49. Kxd5 {[%clk 0:00:49]}  Kf6 {[%clk 0:00:12]} 50. Kc5 {[%clk 0:00:23]}  Bc7 {[%clk 0:00:11]} 51. b4 {[%clk 0:00:22]}  axb4 {[%clk 0:00:12]} 52. Kxb4 {[%clk 0:00:23]}  Kxf5 {[%clk 0:00:10]} 53. a5 {[%clk 0:00:23]}  Ke6 {[%clk 0:00:09]} 54. Kb5 {[%clk 0:00:19]}  Kd6 {[%clk 0:00:09]} 55. a6 {[%clk 0:00:19]}  Bb8 {[%clk 0:00:09]} 56. Kb6 {[%clk 0:00:20]}  f5 {[%clk 0:00:08]} 57. Kb7 {[%clk 0:00:19]}  g4 {[%clk 0:00:07]} 58. c7 {[%clk 0:00:19]}  Bxc7 {[%clk 0:00:07]} 59. a7 {[%clk 0:00:19]}  gxh3 {[%clk 0:00:07]} 60. gxh3 {[%clk 0:00:20]}  Ke6 {[%clk 0:00:05]} 61. a8=Q {[%clk 0:00:21]}  Be5 {[%clk 0:00:06]} 62. Qc8+ {[%clk 0:00:20]}  Kd5 {[%clk 0:00:06]} 63. Qxf5 {[%clk 0:00:20]}  Kd4 {[%clk 0:00:07]} 64. Qg4+ {[%clk 0:00:20]} 1-0


[Site "https://www.chess.com"]

[Event "Titled Tuesday Blitz March 07 Early 2023"]
[White "Ardila, Oscar Humberto"]
[Black "Fikiet, Alex"]
[WhiteFideId "4404742"]
[BlackFideId "2052717"]
[WhiteElo "1911"]
[BlackElo "2429"]
[Result "0-1"]
[Round "06"]
[TimeControl "180+2"]
[Date "2023.03.07"]
[WhiteClock "0:00:03"]
[BlackClock "0:00:11"]

1. d4 {[%clk 0:03:00]}  d5 {[%clk 0:02:59]} 2. Nf3 {[%clk 0:02:59]}  e6 {[%clk 0:02:58]} 3. g3 {[%clk 0:02:58]}  a6 {[%clk 0:02:59]} 4. Bg2 {[%clk 0:02:59]}  c5 {[%clk 0:02:58]} 5. c3 {[%clk 0:02:58]}  Nc6 {[%clk 0:02:57]} 6. O-O {[%clk 0:02:58]}  b5 {[%clk 0:02:55]} 7. Bg5 {[%clk 0:02:57]}  Qb6 {[%clk 0:02:51]} 8. dxc5 {[%clk 0:02:48]}  Bxc5 {[%clk 0:02:51]} 9. Nbd2 {[%clk 0:02:42]}  Nge7 {[%clk 0:02:46]} 10. Nb3 {[%clk 0:02:41]}  Bd6 {[%clk 0:02:45]} 11. Be3 {[%clk 0:02:37]}  Qc7 {[%clk 0:02:44]} 12. a4 {[%clk 0:02:36]}  b4 {[%clk 0:02:41]} 13. cxb4 {[%clk 0:02:24]}  Nxb4 {[%clk 0:02:36]} 14. Rc1 {[%clk 0:02:22]}  Qd7 {[%clk 0:02:36]} 15. Nc5 {[%clk 0:02:20]}  Qd8 {[%clk 0:02:27]} 16. Qd2 {[%clk 0:02:08]}  a5 {[%clk 0:02:24]} 17. Nd4 {[%clk 0:02:01]}  O-O {[%clk 0:02:06]} 18. Nb5 {[%clk 0:02:01]}  Be5 {[%clk 0:02:01]} 19. Bd4 {[%clk 0:01:55]}  Bxd4 {[%clk 0:01:58]} 20. Qxd4 {[%clk 0:01:55]}  Nec6 {[%clk 0:01:58]} 21. Qd2 {[%clk 0:01:40]}  Na7 {[%clk 0:01:43]} 22. Nd4 {[%clk 0:01:27]}  Qf6 {[%clk 0:01:37]} 23. e4 {[%clk 0:01:24]}  e5 {[%clk 0:01:31]} 24. Ne2 {[%clk 0:01:09]}  d4 {[%clk 0:01:28]} 25. f4 {[%clk 0:01:06]}  Rd8 {[%clk 0:01:21]} 26. fxe5 {[%clk 0:01:03]}  Qxe5 {[%clk 0:01:20]} 27. Qf4 {[%clk 0:00:57]}  Qxf4 {[%clk 0:01:17]} 28. Nxf4 {[%clk 0:00:34]}  Nac6 {[%clk 0:01:15]} 29. e5 {[%clk 0:00:33]}  Rb8 {[%clk 0:01:11]} 30. e6 {[%clk 0:00:31]}  fxe6 {[%clk 0:01:00]} 31. Nfxe6 {[%clk 0:00:31]}  Re8 {[%clk 0:00:56]} 32. Nc7 {[%clk 0:00:17]}  Re7 {[%clk 0:00:49]} 33. Nd5 {[%clk 0:00:17]}  Re2 {[%clk 0:00:45]} 34. Rce1 {[%clk 0:00:11]}  Bg4 {[%clk 0:00:34]} 35. Nxb4 {[%clk 0:00:11]}  Nxb4 {[%clk 0:00:31]} 36. Rxe2 {[%clk 0:00:11]}  Bxe2 {[%clk 0:00:31]} 37. Rf4 {[%clk 0:00:09]}  d3 {[%clk 0:00:31]} 38. Kf2 {[%clk 0:00:10]}  Re8 {[%clk 0:00:26]} 39. Rd4 {[%clk 0:00:09]}  Nc2 {[%clk 0:00:21]} 40. Rd7 {[%clk 0:00:07]}  Rf8+ {[%clk 0:00:20]} 41. Kg1 {[%clk 0:00:04]}  Re8 {[%clk 0:00:16]} 42. Nxd3 {[%clk 0:00:04]}  Ne3 {[%clk 0:00:12]} 43. Nf4 {[%clk 0:00:03]}  Nxg2 {[%clk 0:00:12]} 44. Kxg2 {[%clk 0:00:03]}  Ba6 {[%clk 0:00:11]} 45. Kh3 {[%clk 0:00:03]}  Bc8 {[%clk 0:00:11]} 46. Kg2 {[%clk 0:00:03]}  Bxd7 {[%clk 0:00:11]} 0-1


[Site "https://www.chess.com"]

[Event "Titled Tuesday Blitz March 07 Early 2023"]
[White "Vanek, Tomas"]
[Black "Zherebtsova, Alexandra"]
[WhiteFideId "313459"]
[BlackFideId "24129518"]
[WhiteElo "2052"]
[BlackElo "2055"]
[Result "0-1"]
[Round "06"]
[TimeControl "180+2"]
[Date "2023.03.07"]
[WhiteClock "0:00:03"]
[BlackClock "0:00:08"]

1. d4 {[%clk 0:03:00]}  Nf6 {[%clk 0:02:59]} 2. Bg5 {[%clk 0:02:59]}  d5 {[%clk 0:02:57]} 3. f3 {[%clk 0:02:53]}  Bf5 {[%clk 0:02:52]} 4. e3 {[%clk 0:02:47]}  h6 {[%clk 0:02:49]} 5. Bh4 {[%clk 0:02:44]}  Nbd7 {[%clk 0:02:43]} 6. Bd3 {[%clk 0:02:37]}  Bxd3 {[%clk 0:02:40]} 7. Qxd3 {[%clk 0:02:37]}  e6 {[%clk 0:02:14]} 8. e4 {[%clk 0:02:24]}  Be7 {[%clk 0:02:00]} 9. Nd2 {[%clk 0:02:15]}  c5 {[%clk 0:01:55]} 10. c3 {[%clk 0:02:07]}  Qb6 {[%clk 0:01:54]} 11. O-O-O {[%clk 0:02:00]}  O-O-O {[%clk 0:01:31]} 12. e5 {[%clk 0:01:59]}  Ng8 {[%clk 0:01:31]} 13. Bg3 {[%clk 0:01:54]}  Kb8 {[%clk 0:01:27]} 14. h4 {[%clk 0:01:52]}  h5 {[%clk 0:01:27]} 15. Nh3 {[%clk 0:01:52]}  Nh6 {[%clk 0:01:26]} 16. Ng5 {[%clk 0:01:49]}  Bxg5 {[%clk 0:01:16]} 17. hxg5 {[%clk 0:01:48]}  Nf5 {[%clk 0:01:16]} 18. Bf2 {[%clk 0:01:44]}  cxd4 {[%clk 0:01:11]} 19. Nb3 {[%clk 0:01:36]}  Rc8 {[%clk 0:01:01]} 20. Nxd4 {[%clk 0:01:33]}  Nxd4 {[%clk 0:00:17]} 21. Bxd4 {[%clk 0:01:33]}  Qa5 {[%clk 0:00:17]} 22. Kb1 {[%clk 0:01:31]}  Rc4 {[%clk 0:00:18]} 23. b3 {[%clk 0:01:13]}  Rc6 {[%clk 0:00:17]} 24. g6 {[%clk 0:01:13]}  fxg6 {[%clk 0:00:15]} 25. Qxg6 {[%clk 0:01:13]}  Ra6 {[%clk 0:00:15]} 26. Rd2 {[%clk 0:01:08]}  Rc8 {[%clk 0:00:15]} 27. Qxg7 {[%clk 0:01:04]}  Nc5 {[%clk 0:00:15]} 28. Bxc5 {[%clk 0:00:58]}  Qxc5 {[%clk 0:00:12]} 29. Rc2 {[%clk 0:00:57]}  Qe3 {[%clk 0:00:11]} 30. Rhc1 {[%clk 0:00:55]}  Rb6 {[%clk 0:00:09]} 31. Qd7 {[%clk 0:00:54]}  a5 {[%clk 0:00:09]} 32. Qa4 {[%clk 0:00:53]}  Rc5 {[%clk 0:00:08]} 33. Qd4 {[%clk 0:00:46]}  Qxd4 {[%clk 0:00:06]} 34. cxd4 {[%clk 0:00:46]}  Rxc2 {[%clk 0:00:07]} 35. Rxc2 {[%clk 0:00:45]}  Rb4 {[%clk 0:00:07]} 36. Rd2 {[%clk 0:00:43]}  Kc7 {[%clk 0:00:07]} 37. Kb2 {[%clk 0:00:43]}  Kd7 {[%clk 0:00:07]} 38. g4 {[%clk 0:00:42]}  hxg4 {[%clk 0:00:07]} 39. fxg4 {[%clk 0:00:42]}  Ke7 {[%clk 0:00:08]} 40. Kc3 {[%clk 0:00:38]}  Kf7 {[%clk 0:00:07]} 41. Kd3 {[%clk 0:00:35]}  Rb6 {[%clk 0:00:07]} 42. Rf2+ {[%clk 0:00:32]}  Kg7 {[%clk 0:00:07]} 43. Rf6 {[%clk 0:00:31]}  Kg8 {[%clk 0:00:07]} 44. g5 {[%clk 0:00:30]}  Kg7 {[%clk 0:00:07]} 45. Kc3 {[%clk 0:00:30]}  Rc6+ {[%clk 0:00:07]} 46. Kb2 {[%clk 0:00:30]}  b5 {[%clk 0:00:07]} 47. a3 {[%clk 0:00:29]}  b4 {[%clk 0:00:07]} 48. axb4 {[%clk 0:00:29]}  axb4 {[%clk 0:00:07]} 49. Kb1 {[%clk 0:00:27]}  Rb6 {[%clk 0:00:07]} 50. Kc2 {[%clk 0:00:25]}  Rc6+ {[%clk 0:00:07]} 51. Kb2 {[%clk 0:00:25]}  Rb6 {[%clk 0:00:08]} 52. g6 {[%clk 0:00:25]}  Rc6 {[%clk 0:00:08]} 53. Rf7+ {[%clk 0:00:25]}  Kxg6 {[%clk 0:00:08]} 54. Rb7 {[%clk 0:00:25]}  Kf5 {[%clk 0:00:07]} 55. Rxb4 {[%clk 0:00:24]}  Ke4 {[%clk 0:00:08]} 56. Ra4 {[%clk 0:00:23]}  Kd3 {[%clk 0:00:08]} 57. b4 {[%clk 0:00:21]}  Rb6 {[%clk 0:00:07]} 58. Kb3 {[%clk 0:00:18]}  Kxd4 {[%clk 0:00:07]} 59. Ra1 {[%clk 0:00:08]}  Kxe5 {[%clk 0:00:07]} 60. Ka4 {[%clk 0:00:07]}  Kd6 {[%clk 0:00:07]} 61. Rc1 {[%clk 0:00:07]}  e5 {[%clk 0:00:07]} 62. Ka5 {[%clk 0:00:07]}  Rb8 {[%clk 0:00:07]} 63. b5 {[%clk 0:00:07]}  e4 {[%clk 0:00:07]} 64. b6 {[%clk 0:00:07]}  Ke5 {[%clk 0:00:08]} 65. Kb5 {[%clk 0:00:07]}  d4 {[%clk 0:00:08]} 66. Kc6 {[%clk 0:00:06]}  Rc8+ {[%clk 0:00:08]} 67. Kd7 {[%clk 0:00:05]}  Rxc1 {[%clk 0:00:08]} 68. b7 {[%clk 0:00:05]}  Rb1 {[%clk 0:00:09]} 69. Kc6 {[%clk 0:00:04]}  e3 {[%clk 0:00:09]} 70. b8=Q+ {[%clk 0:00:03]}  Rxb8 {[%clk 0:00:08]} 0-1


[Site "https://www.chess.com"]